[Event "Walton Rating Tournament 2023"]
[Site "Dhaka"]
[Date "2024.01.03"]
[Round "6.2"]
[White "Sakline Mostafa, Sajid"]
[Black "Zia, Tahsin Tajwar"]
[Result "0-1"]
[ECO "D37"]
[WhiteElo "2110"]
[BlackElo "2303"]
[Annotator "RC"]
[PlyCount "115"]
[EventDate "2023.12.30"]
[EventType "swiss"]
[EventCountry "BAN"]
[SourceTitle "playchess.com"]
[Source "ChessBase"]
[SourceQuality "1"]
[TimeControl "5400+30"]

1. d4 {[%emt 0:01:00]} Nf6 {[%emt 0:00:08]} 2. c4 {[%emt 0:00:05]} e6 {[%emt 0:00:03]} 3. Nf3 {[%emt 0:00:11]} d5 {[%emt 0:00:02]} 4. Nc3 {[%emt 0:00:11]} Nbd7 {[%emt 0:00:05]} 5. Bf4 {[%emt 0:00:15]} Bb4 {[%emt 0:00:10]} 6. Qa4 {[%emt 0:03:30]} c5 {[%emt 0:02:25]} 7. dxc5 {[%emt 0:09:50]} Bxc3+ {[%emt 0:04:59]} 8. bxc3 {[%emt 0:00:11]} O-O {[%emt 0:00:16]} 9. Bd6 {[%emt 0:14:56]} Re8 {[%emt 0:00:37]} 10. e3 {[%emt 0:04:21]} Ne4 {[%emt 1:26:45]} 11. cxd5 {[%emt 0:07:00]} exd5 {[%emt 0:00:00]} 12. Qa3 {[%emt 0:08:53]} Qf6 {[%emt 0:00:00]} 13. Rd1 {[%emt 0:06:45]} Ne5 14. Bxe5 Rxe5 {[%emt 0:00:00]} 15. Be2 {[%emt 0:08:17]} Bg4 {[%emt 0:00:00]} 16. Rd4 {[%emt 0:03:02]} Rf5 {[%emt 0:00:00]} 17. Qb4 {[%emt 0:05:53]} Re8 {[%emt 0:00:00]} 18. Rf1 {[%emt 0:00:56]} h5 {[%emt 0:00:00]} 19. h3 {[%emt 0:07:45]} Bxf3 {[%emt 0:00:00]} 20. gxf3 {[%emt 0:01:12]} Ng5 {[%emt 0:00:00]} 21. f4 {[%emt 0:03:20]} Ne6 {[%emt 0:00:00]} 22. Rd3 {[%emt 0:04:13]} Qe7 {[%emt 0:00:00]} 23. c6 {[%emt 0:00:31]} bxc6 {[%emt 0:00:00]} 24. Qxe7 {[%emt 0:00:31]} Rxe7 {[%emt 0:00:00]} 25. Kd1 {[%emt 0:00:59]} g6 {[%emt 0:00:00]} 26. Rd2 {[%emt 0:01:51]} Nc5 {[%emt 0:00:00]} 27. Rd4 {[%emt 0:01:12]} Rf6 {[%emt 0:00:00]} 28. Bf3 {[%emt 0:01:05]} Rd6 {[%emt 0:03:50]} 29. Kc2 {[%emt 0:02:54]} Ne6 {[%emt 0:00:05]} 30. Rd2 {[%emt 0:00:31]} Rb7 {[%emt 0:01:09]} 31. Rb1 {[%emt 0:00:25]} Rbd7 {[%emt 0:01:52]} 32. Rbd1 {[%emt 0:01:02]} Kg7 {[%emt 0:00:40]} 33. Bg2 {[%emt 0:01:16]} Kf6 {[%emt 0:00:52]} 34. Bf3 {[%emt 0:01:47]} Ke7 {[%emt 0:00:13]} 35. Be2 {[%emt 0:00:25]} c5 {[%emt 0:02:21]} 36. c4 {[%emt 0:00:56]} d4 {[%emt 0:00:10]} 37. Rb1 {[%emt 0:00:44]} Ra6 {[%emt 0:00:57]} 38. Rb2 {[%emt 0:00:15]} Rdd6 {[%emt 0:00:25]} 39. f5 {[%emt 0:00:51]} gxf5 {[%emt 0:00:40]} 40. Bxh5 {[%emt 0:00:13]} Rdb6 {[%emt 0:00:58]} 41. Kb1 {[%emt 0:01:08]} Ra4 {[%emt 0:00:35]} 42. Be2 {[%emt 0:00:17]} Ra3 {[%emt 0:00:36]} 43. Rxb6 {[%emt 0:00:36]} axb6 {[%emt 0:00:01]} 44. exd4 {[%emt 0:00:28]} Nxd4 {[%emt 0:01:36]} 45. Rd3 {[%emt 0:00:22]} Ra4 {[%emt 0:00:00]} 46. Re3+ {[%emt 0:00:03]} Kf6 {[%emt 0:00:00]} 47. Bd3 {[%emt 0:00:36]} Rb4+ {[%emt 0:00:36]} 48. Kc1 {[%emt 0:00:08]} Ra4 {[%emt 0:00:12]} 49. Kb2 {[%emt 0:00:20]} Ra8 {[%emt 0:00:26]} 50. h4 {[%emt 0:00:34]} Rg8 {[%emt 0:00:24]} 51. Rg3 {[%emt 0:01:25]} Rg4 {[%emt 0:00:29]} 52. Rh3 {[%emt 0:00:38]} Rg2 {[%emt 0:00:13]} 53. h5 {[%emt 0:00:08]} Rxf2+ {[%emt 0:02:10]} 54. Kc1 {[%emt 0:00:47]} Rxa2 {[%emt 0:00:00]} 55. h6 {[%emt 0:00:34]} Ra8 {[%emt 0:00:00]} 56. Rh2 {[%emt 0:00:26]} Rh8 {[%emt 0:00:00]} 57. Rb2 {[%emt 0:00:34]} Rxh6 {[%emt 0:00:00]} 58. Rxb6+ {[%emt 0:00:06]} 0-1

[Event "Walton Rating Tournament 2023"]
[Site "Dhaka"]
[Date "2024.01.03"]
[Round "6.3"]
[White "Rahman, Syed Mahfuzur"]
[Black "Rahman, Ziaur"]
[Result "1/2-1/2"]
[ECO "E62"]
[WhiteElo "2088"]
[BlackElo "2436"]
[Annotator "RC"]
[PlyCount "55"]
[EventDate "2023.12.30"]
[EventType "swiss"]
[EventCountry "BAN"]
[SourceTitle "playchess.com"]
[Source "ChessBase"]
[SourceQuality "1"]
[TimeControl "5400+30"]

1. d4 {[%emt 0:16:16]} Nf6 {[%emt 0:00:27]} 2. c4 {[%emt 0:00:12]} g6 {[%emt 0:02:12]} 3. Nc3 {[%emt 0:00:21]} Bg7 {[%emt 0:00:06]} 4. Nf3 {[%emt 0:00:43]} O-O {[%emt 0:00:08]} 5. g3 {[%emt 0:00:13]} d6 {[%emt 0:00:28]} 6. Bg2 {[%emt 0:00:07]} c6 {[%emt 0:00:31]} 7. O-O {[%emt 0:00:14]} Bf5 {[%emt 0:04:12]} 8. h3 {[%emt 0:13:53]} Ne4 {[%emt 0:01:48]} 9. Qb3 {[%emt 0:03:27]} Nxc3 {[%emt 0:01:52]} 10. Qxc3 {[%emt 0:07:26]} Be4 {[%emt 0:06:03]} 11. Qb3 {[%emt 0:05:52]} Qb6 {[%emt 0:03:08]} 12. Be3 {[%emt 0:01:04]} d5 {[%emt 0:02:23]} 13. c5 {[%emt 0:11:25]} Qa6 {[%emt 0:02:06]} 14. Rfc1 {[%emt 0:09:41]} b6 {[%emt 0:03:10]} 15. cxb6 {[%emt 0:04:29]} axb6 {[%emt 0:01:04]} 16. Bf1 {[%emt 0:02:05]} Bxf3 {[%emt 0:08:33]} 17. exf3 {[%emt 0:00:02]} Qa5 {[%emt 0:01:16]} 18. Rc2 {[%emt 0:02:23]} Rc8 {[%emt 0:02:02]} 19. Bb5 {[%emt 0:03:14]} e6 {[%emt 0:19:09]} 20. a3 {[%emt 0:03:42]} c5 {[%emt 0:03:26]} 21. dxc5 {[%emt 0:01:00]} bxc5 {[%emt 0:00:10]} 22. Rxc5 {[%emt 0:00:22]} Rxc5 {[%emt 0:00:42]} 23. Bxc5 {[%emt 0:00:03]} Na6 {[%emt 0:00:55]} 24. Rc1 {[%emt 0:05:25]} Rc8 {[%emt 0:08:27]} 25. Bxa6 {[%emt 0:02:56]} Rxc5 {[%emt 0:01:04]} 26. Rxc5 {[%emt 0:02:58]} Qxc5 {[%emt 0:00:02]} 27. Qb8+ {[%emt 0:00:45]} Bf8 {[%emt 0:00:03]} 28. Kg2 {[%emt 0:00:17]} 1/2-1/2

[Event "Walton Rating Tournament 2023"]
[Site "Dhaka"]
[Date "2024.01.03"]
[Round "6.5"]
[White "Manon, Reja Neer"]
[Black "Md Mutakabbir"]
[Result "1-0"]
[ECO "C02"]
[WhiteElo "2243"]
[BlackElo "1887"]
[Annotator "RC"]
[PlyCount "53"]
[EventDate "2023.12.30"]
[EventType "swiss"]
[EventCountry "BAN"]
[SourceTitle "playchess.com"]
[Source "ChessBase"]
[SourceQuality "1"]
[TimeControl "5400+30"]

1. e4 {[%emt 0:07:46]} e6 {[%emt 0:00:14]} 2. d4 {[%emt 0:00:13]} d5 {[%emt 0:00:04]} 3. e5 {[%emt 0:00:23]} c5 {[%emt 0:00:25]} 4. c3 {[%emt 0:00:10]} Nc6 {[%emt 0:00:31]} 5. Nf3 {[%emt 0:00:14]} Qb6 {[%emt 0:02:33]} 6. a3 {[%emt 0:00:36]} c4 {[%emt 0:00:31]} 7. Nbd2 {[%emt 0:00:07]} Na5 {[%emt 0:00:33]} 8. Rb1 {[%emt 0:00:05]} Bd7 {[%emt 0:00:16]} 9. h4 {[%emt 0:00:06]} f6 {[%emt 0:00:58]} 10. h5 {[%emt 0:01:35]} fxe5 {[%emt 0:01:04]} 11. Nxe5 {[%emt 0:00:13]} Nf6 {[%emt 0:00:15]} 12. g3 {[%emt 0:04:08]} Bd6 {[%emt 0:00:55]} 13. Bh3 {[%emt 0:01:02]} Bxe5 {[%emt 0:11:34]} 14. dxe5 {[%emt 0:00:26]} Ng8 {[%emt 0:00:11]} 15. Qg4 {[%emt 0:01:15]} Nh6 {[%emt 0:08:38]} 16. Qxg7 {[%emt 0:00:53]} Nf7 {[%emt 0:00:46]} 17. Nf3 {[%emt 0:01:26]} Nb3 {[%emt 0:07:42]} 18. Ng5 {[%emt 0:01:31]} O-O-O {[%emt 0:07:04]} 19. Nxf7 {[%emt 0:00:32]} Rdf8 {[%emt 0:01:27]} 20. Be3 {[%emt 0:00:43]} d4 {[%emt 0:00:29]} 21. Nxh8 {[%emt 0:00:44]} Re8 {[%emt 0:02:48]} 22. cxd4 {[%emt 0:00:52]} Nxd4 {[%emt 0:00:39]} 23. Rd1 {[%emt 0:01:44]} Qc6 {[%emt 0:01:09]} 24. Rxd4 {[%emt 0:01:22]} Qxh1+ {[%emt 0:00:26]} 25. Bf1 {[%emt 0:00:05]} Bb5 {[%emt 0:00:49]} 26. Nf7 {[%emt 0:00:13]} Kb8 {[%emt 0:01:28]} 27. Nd6 {[%emt 0:00:25]} 1-0

[Event "Walton Rating Tournament 2023"]
[Site "Dhaka"]
[Date "2024.01.03"]
[Round "6.6"]
[White "Swarnavo Choudhury"]
[Black "Anata, Choudhury"]
[Result "1/2-1/2"]
[ECO "B91"]
[WhiteElo "2056"]
[BlackElo "2196"]
[Annotator "RC"]
[PlyCount "40"]
[EventDate "2023.12.30"]
[EventType "swiss"]
[EventCountry "BAN"]
[SourceTitle "playchess.com"]
[Source "ChessBase"]
[SourceQuality "1"]
[TimeControl "5400+30"]

1. e4 {[%emt 0:05:52]} c5 {[%emt 0:00:17]} 2. Nf3 {[%emt 0:00:07]} d6 {[%emt 0:00:10]} 3. d4 {[%emt 0:00:52]} cxd4 {[%emt 0:00:09]} 4. Nxd4 {[%emt 0:00:07]} Nf6 {[%emt 0:00:07]} 5. Nc3 {[%emt 0:00:05]} a6 {[%emt 0:00:06]} 6. g3 {[%emt 0:00:07]} e5 {[%emt 0:00:15]} 7. Nde2 {[%emt 0:00:08]} Be7 {[%emt 0:00:39]} 8. Bg2 {[%emt 0:00:07]} b5 {[%emt 0:00:09]} 9. h3 {[%emt 0:01:24]} h5 {[%emt 0:02:17]} 10. Bg5 {[%emt 0:01:36]} Nbd7 {[%emt 0:01:10]} 11. O-O {[%emt 0:07:26]} Nb6 {[%emt 0:02:06]} 12. Bxf6 {[%emt 0:00:45]} Bxf6 {[%emt 0:00:11]} 13. Nd5 {[%emt 0:00:05]} Nxd5 {[%emt 0:06:41]} 14. Qxd5 {[%emt 0:02:07]} Be6 {[%emt 0:00:34]} 15. Qc6+ {[%emt 0:05:53]} Ke7 {[%emt 0:00:11]} 16. Nc3 {[%emt 0:06:38]} Qb8 {[%emt 0:08:20]} 17. Nd5+ {[%emt 0:02:46]} Bxd5 {[%emt 0:00:10]} 18. Qxd5 {[%emt 0:00:11]} Rc8 {[%emt 0:00:09]} 19. c3 {[%emt 0:02:38]} Rc5 {[%emt 0:00:53]} 20. Qd2 {[%emt 0:05:45]} Qb7 {[%emt 0:04:42]} 1/2-1/2

[Event "Walton Rating Tournament 2023"]
[Site "Dhaka"]
[Date "2024.01.03"]
[Round "7.1"]
[White "Zia, Tahsin Tajwar"]
[Black "Subrota, Biswas"]
[Result "1/2-1/2"]
[ECO "E30"]
[WhiteElo "2303"]
[BlackElo "2223"]
[Annotator "ChessBase"]
[PlyCount "36"]
[EventDate "2023.12.30"]
[EventType "swiss"]
[EventCountry "BAN"]
[SourceTitle "playchess.com"]
[Source "ChessBase"]
[SourceQuality "1"]
[TimeControl "5400+30"]

1. d4 {[%emt 0:02:55]} Nf6 {[%emt 0:00:12]} 2. c4 {[%emt 0:02:39]} e6 {[%emt 0:00:34]} 3. Nc3 {[%emt 0:02:04]} d5 {[%emt 0:00:35]} 4. Bg5 {[%emt 0:00:28]} Bb4 {[%emt 0:00:25]} 5. e3 {[%emt 0:00:56]} h6 {[%emt 0:00:06]} 6. Bh4 {[%emt 0:00:50]} O-O {[%emt 0:00:10]} 7. cxd5 {[%emt 0:01:27]} exd5 {[%emt 0:00:06]} 8. Bd3 {[%emt 0:00:07]} c6 {[%emt 0:09:42]} 9. Qc2 {[%emt 0:08:39]} Re8 {[%emt 0:00:46]} 10. Nf3 {[%emt 0:01:11]} Be7 {[%emt 0:06:12]} 11. Nd2 {[%emt 0:08:57]} a5 {[%emt 0:08:15]} 12. O-O {[%emt 0:02:40]} Na6 {[%emt 0:10:40]} 13. a3 {[%emt 0:00:30]} Bd6 {[%emt 0:00:30]} 14. Kh1 {[%emt 0:08:25]} g5 {[%emt 0:01:03]} 15. Bg3 {[%emt 0:00:08]} Bxg3 {[%emt 0:00:01]} 16. hxg3 {[%emt 0:02:31]} Kg7 {[%emt 0:03:14]} 17. Kg1 {[%emt 0:02:06]} b5 {[%emt 0:05:43]} 18. Rfe1 {[%emt 0:01:34]} Bg4 {[%emt 0:08:41]} 1/2-1/2

[Event "Walton Rating Tournament 2023"]
[Site "Dhaka"]
[Date "2024.01.03"]
[Round "7.3"]
[White "Mohammad Minhaz Uddin"]
[Black "abzid, Rahman"]
[Result "1/2-1/2"]
[ECO "B29"]
[WhiteElo "2221"]
[BlackElo "2004"]
[Annotator "RC"]
[PlyCount "204"]
[EventDate "2023.12.30"]
[EventType "swiss"]
[EventCountry "BAN"]
[SourceTitle "playchess.com"]
[Source "ChessBase"]
[SourceQuality "1"]
[TimeControl "5400+30"]

1. e4 {[%emt 0:19:57]} c5 {[%emt 0:00:46]} 2. Nf3 {[%emt 0:00:03]} Nf6 {[%emt 0:00:13]} 3. Nc3 {[%emt 0:00:39]} d5 {[%emt 0:00:09]} 4. e5 {[%emt 0:06:48]} Nfd7 {[%emt 0:00:29]} 5. Qe2 {[%emt 0:07:44]} e6 {[%emt 0:00:47]} 6. d3 {[%emt 0:02:03]} Nc6 {[%emt 0:01:54]} 7. g3 {[%emt 0:00:25]} b5 {[%emt 0:07:05]} 8. Bg2 {[%emt 0:01:09]} b4 {[%emt 0:01:51]} 9. Nd1 {[%emt 0:03:14]} Be7 {[%emt 0:03:30]} 10. h4 {[%emt 0:00:24]} a5 {[%emt 0:04:38]} 11. O-O {[%emt 0:07:02]} h6 {[%emt 0:03:02]} 12. c4 {[%emt 0:02:53]} dxc4 {[%emt 0:03:36]} 13. dxc4 {[%emt 0:00:03]} Bb7 {[%emt 0:02:42]} 14. Re1 {[%emt 0:13:45]} Qb6 {[%emt 0:06:09]} 15. Ne3 {[%emt 0:08:46]} Nd4 {[%emt 0:03:44]} 16. Nxd4 {[%emt 0:00:16]} cxd4 {[%emt 0:00:20]} 17. Bxb7 {[%emt 0:00:15]} Qxb7 {[%emt 0:00:14]} 18. Nc2 {[%emt 0:01:28]} Bc5 {[%emt 0:00:47]} 19. Rd1 {[%emt 0:11:14]} Qb6 {[%emt 0:09:05]} 20. b3 {[%emt 0:02:04]} Rd8 {[%emt 0:01:57]} 21. Bb2 {[%emt 0:00:31]} Nb8 {[%emt 0:00:17]} 22. Ne1 {[%emt 0:05:48]} Nc6 {[%emt 0:02:28]} 23. Nd3 {[%emt 0:00:03]} g5 {[%emt 0:06:38]} 24. h5 {[%emt 0:00:14]} O-O {[%emt 0:06:36]} 25. Rd2 {[%emt 0:01:17]} Be7 {[%emt 0:05:45]} 26. Qe4 {[%emt 0:00:32]} Rd7 {[%emt 0:02:12]} 27. Rad1 {[%emt 0:02:08]} a4 {[%emt 0:02:29]} 28. Ne1 {[%emt 0:00:18]} Bc5 {[%emt 0:00:28]} 29. Rd3 {[%emt 0:01:01]} a3 {[%emt 0:02:51]} 30. Bc1 {[%emt 0:00:15]} Ne7 {[%emt 0:02:18]} 31. Rf3 {[%emt 0:01:09]} Qc6 {[%emt 0:00:14]} 32. Qxc6 {[%emt 0:00:15]} Nxc6 {[%emt 0:00:10]} 33. Nd3 {[%emt 0:00:01]} Be7 {[%emt 0:00:29]} 34. Re1 {[%emt 0:00:16]} Kg7 {[%emt 0:01:24]} 35. Bd2 {[%emt 0:00:13]} Kh7 {[%emt 0:01:42]} 36. g4 {[%emt 0:00:36]} Kg7 {[%emt 0:00:20]} 37. Kg2 {[%emt 0:00:16]} Ra7 {[%emt 0:05:48]} 38. Rh3 {[%emt 0:00:33]} Ra5 {[%emt 0:00:54]} 39. Re4 {[%emt 0:00:39]} f5 {[%emt 0:00:55]} 40. exf6+ {[%emt 0:00:02]} Rxf6 {[%emt 0:00:19]} 41. Rh1 {[%emt 0:00:51]} Bd6 {[%emt 0:00:44]} 42. Rc1 {[%emt 0:01:57]} Bc5 {[%emt 0:03:36]} 43. Rce1 {[%emt 0:00:02]} Kf7 {[%emt 0:00:24]} 44. Ne5+ {[%emt 0:01:20]} Nxe5 {[%emt 0:00:12]} 45. Rxe5 {[%emt 0:00:01]} Ke7 {[%emt 0:00:44]} 46. Rxc5 {[%emt 0:00:22]} Rxc5 {[%emt 0:00:29]} 47. Bxb4 {[%emt 0:00:02]} Kd6 {[%emt 0:00:14]} 48. Bxa3 {[%emt 0:00:03]} Kc6 {[%emt 0:00:27]} 49. Bb4 {[%emt 0:02:27]} Kb6 {[%emt 0:01:12]} 50. Re4 {[%emt 0:01:09]} e5 {[%emt 0:01:30]} 51. Bxc5+ {[%emt 0:00:32]} Kxc5 {[%emt 0:00:02]} 52. Rxe5+ {[%emt 0:00:01]} Kb4 {[%emt 0:00:01]} 53. Rd5 {[%emt 0:00:54]} Kc3 {[%emt 0:00:15]} 54. c5 {[%emt 0:00:05]} d3 {[%emt 0:00:46]} 55. b4 {[%emt 0:00:12]} Rf4 {[%emt 0:00:07]} 56. b5 {[%emt 0:01:04]} Kc4 {[%emt 0:08:28]} 57. Rd8 {[%emt 0:00:13]} Rxg4+ {[%emt 0:00:37]} 58. Kf1 {[%emt 0:00:01]} Kxb5 {[%emt 0:00:32]} 59. Rxd3 {[%emt 0:00:03]} Rh4 {[%emt 0:00:10]} 60. Rc3 {[%emt 0:01:45]} Kc6 {[%emt 0:00:09]} 61. Kg2 {[%emt 0:00:28]} Rxh5 {[%emt 0:00:21]} 62. Rc4 {[%emt 0:00:35]} g4 {[%emt 0:01:56]} 63. Kg3 {[%emt 0:00:08]} Rf5 {[%emt 0:00:35]} 64. Rxg4 {[%emt 0:01:00]} Rxc5 {[%emt 0:00:30]} 65. Rg6+ {[%emt 0:00:06]} Kd7 {[%emt 0:00:16]} 66. Rxh6 {[%emt 0:01:06]} Ra5 {[%emt 0:00:09]} 67. Rh1 {[%emt 0:00:16]} Rxa2 {[%emt 0:00:29]} 68. Re1 {[%emt 0:00:01]} Ra8 {[%emt 0:01:02]} 69. f4 {[%emt 0:00:03]} Rg8+ {[%emt 0:00:21]} 70. Kf3 {[%emt 0:00:01]} Rg7 {[%emt 0:00:20]} 71. f5 {[%emt 0:01:52]} Re7 {[%emt 0:00:19]} 72. Rh1 {[%emt 0:00:28]} Ke8 {[%emt 0:00:21]} 73. Kf4 {[%emt 0:00:01]} Kf8 {[%emt 0:00:29]} 74. Ra1 {[%emt 0:00:51]} Rb7 {[%emt 0:00:40]} 75. Ra8+ {[%emt 0:00:50]} Kf7 {[%emt 0:00:23]} 76. Kg5 {[%emt 0:00:01]} Rc7 {[%emt 0:00:21]} 77. Ra6 {[%emt 0:00:17]} Rb7 {[%emt 0:00:19]} 78. Rh6 {[%emt 0:00:21]} Kg8 {[%emt 0:01:33]} 79. Kg6 {[%emt 0:00:42]} Rg7+ {[%emt 0:00:30]} 80. Kf6 {[%emt 0:00:01]} Ra7 {[%emt 0:00:12]} 81. Rg6+ {[%emt 0:00:57]} Kf8 {[%emt 0:00:09]} 82. Rg4 {[%emt 0:01:11]} Ra6+ {[%emt 0:00:38]} 83. Kg5 {[%emt 0:00:04]} Ra7 {[%emt 0:00:41]} 84. Rb4 {[%emt 0:00:34]} Rg7+ {[%emt 0:00:20]} 85. Kf4 {[%emt 0:00:09]} Ra7 {[%emt 0:01:24]} 86. Rb6 {[%emt 0:00:20]} Kf7 {[%emt 0:00:23]} 87. Kg5 {[%emt 0:00:04]} Kg7 {[%emt 0:00:12]} 88. Rg6+ {[%emt 0:00:25]} Kf8 {[%emt 0:00:47]} 89. Rf6+ {[%emt 0:01:07]} Kg8 {[%emt 0:00:18]} 90. Rh6 {[%emt 0:00:43]} Kf8 {[%emt 0:00:19]} 91. Rf6+ {[%emt 0:01:08]} Kg8 {[%emt 0:00:12]} 92. Rd6 {[%emt 0:00:02]} Kf8 {[%emt 0:00:18]} 93. Kf6 {[%emt 0:00:56]} Rf7+ {[%emt 0:00:09]} 94. Ke5 {[%emt 0:00:01]} Re7+ {[%emt 0:00:18]} 95. Kf4 {[%emt 0:00:51]} Ra7 {[%emt 0:00:08]} 96. Rd8+ {[%emt 0:00:41]} Kf7 {[%emt 0:00:16]} 97. Kg5 {[%emt 0:00:05]} Kg7 {[%emt 0:00:44]} 98. Rd6 {[%emt 0:00:11]} Kf8 {[%emt 0:00:15]} 99. Rg6 {[%emt 0:00:50]} Rb7 {[%emt 0:00:44]} 100. Rf6+ {[%emt 0:00:36]} Kg7 {[%emt 0:00:14]} 101. Rh6 {[%emt 0:00:03]} Rb1 {[%emt 0:00:34]} 102. Rg6+ {[%emt 0:00:59]} Kf7 {[%emt 0:00:10]} 1/2-1/2

[Event "Walton Rating Tournament 2023"]
[Site "Dhaka"]
[Date "2024.01.03"]
[Round "7.4"]
[White "Ahmed, Sheikh Nasir"]
[Black "Hasan, Sk. Rashedul"]
[Result "1-0"]
[ECO "B70"]
[WhiteElo "2193"]
[BlackElo "1807"]
[Annotator "RC"]
[PlyCount "91"]
[EventDate "2023.12.30"]
[EventType "swiss"]
[EventCountry "BAN"]
[SourceTitle "playchess.com"]
[Source "ChessBase"]
[SourceQuality "1"]
[TimeControl "5400+30"]

1. e4 {[%emt 0:00:04]} c5 {[%emt 0:36:12]} 2. Nf3 {[%emt 0:00:13]} g6 {[%emt 0:00:05]} 3. d4 {[%emt 0:00:17]} cxd4 {[%emt 0:00:08]} 4. Nxd4 {[%emt 0:00:06]} Nf6 {[%emt 0:00:33]} 5. Nc3 {[%emt 0:00:09]} Nc6 {[%emt 0:00:40]} 6. g3 {[%emt 0:01:26]} Bg7 {[%emt 0:00:20]} 7. Nde2 {[%emt 0:00:14]} O-O {[%emt 0:01:30]} 8. Bg2 {[%emt 0:00:07]} d6 {[%emt 0:00:19]} 9. O-O {[%emt 0:00:10]} Be6 {[%emt 0:01:26]} 10. Nd5 {[%emt 0:01:18]} Qc8 {[%emt 0:04:01]} 11. Bg5 {[%emt 0:09:26]} Rd8 {[%emt 0:00:54]} 12. c3 {[%emt 0:06:33]} Bh3 {[%emt 0:01:15]} 13. Bxf6 {[%emt 0:18:22]} Bxg2 {[%emt 0:10:36]} 14. Kxg2 {[%emt 0:10:03]} exf6 {[%emt 0:03:51]} 15. Nd4 {[%emt 0:05:41]} Re8 {[%emt 0:03:05]} 16. Nb5 {[%emt 0:02:14]} Rd8 {[%emt 0:05:26]} 17. Qf3 {[%emt 0:02:47]} f5 {[%emt 0:01:42]} 18. exf5 {[%emt 0:00:27]} gxf5 {[%emt 0:00:22]} 19. Rad1 {[%emt 0:04:38]} Qd7 {[%emt 0:00:19]} 20. Nf4 {[%emt 0:09:23]} Be5 {[%emt 0:03:13]} 21. Ne2 {[%emt 0:07:48]} Kh8 {[%emt 0:25:03]} 22. Nbd4 {[%emt 0:00:31]} Ne7 {[%emt 0:00:00]} 23. Nf4 {[%emt 0:01:14]} Rg8 {[%emt 0:00:00]} 24. Nd5 {[%emt 0:00:45]} Ng6 {[%emt 0:00:00]} 25. Kh1 {[%emt 0:00:42]} f4 {[%emt 0:00:00]} 26. Qh5 {[%emt 0:01:02]} Rac8 {[%emt 0:00:00]} 27. Nf3 {[%emt 0:01:27]} Rc5 {[%emt 0:00:00]} 28. b4 {[%emt 0:00:44]} Rcc8 {[%emt 0:00:00]} 29. Rd3 {[%emt 0:05:10]} Qb5 {[%emt 0:00:00]} 30. Rfd1 {[%emt 0:00:18]} Qc4 {[%emt 0:00:00]} 31. Qf5 {[%emt 0:01:44]} fxg3 {[%emt 0:00:00]} 32. fxg3 {[%emt 0:00:41]} Qxa2 {[%emt 0:00:00]} 33. Nf6 {[%emt 0:02:48]} Rgf8 {[%emt 0:00:00]} 34. Nxe5 {[%emt 0:03:10]} dxe5 {[%emt 0:00:00]} 35. Qh5 {[%emt 0:00:48]} Kg7 {[%emt 0:00:00]} 36. Ng4 {[%emt 0:00:18]} Qc4 {[%emt 0:00:00]} 37. Kg1 {[%emt 0:02:16]} Rc6 {[%emt 0:05:58]} 38. Nxe5 {[%emt 0:00:47]} Nxe5 {[%emt 0:00:18]} 39. Qxe5+ {[%emt 0:00:03]} Kg8 {[%emt 0:00:22]} 40. Rd8 {[%emt 0:00:33]} Rc8 {[%emt 0:01:48]} 41. Qg5+ {[%emt 0:00:15]} Kh8 {[%emt 0:00:02]} 42. Qf6+ {[%emt 0:00:12]} Kg8 {[%emt 0:00:14]} 43. R8d5 {[%emt 0:00:50]} h6 {[%emt 0:01:42]} 44. R1d4 {[%emt 0:01:13]} Qe2 {[%emt 0:00:11]} 45. Rg5+ {[%emt 0:00:11]} hxg5 {[%emt 0:00:40]} 46. Qxg5+ {[%emt 0:00:02]} 1-0

[Event "Walton Rating Tournament 2023"]
[Site "Dhaka"]
[Date "2024.01.03"]
[Round "7.5"]
[White "Rahman, Ziaur"]
[Black "Chowdhury, Sohel"]
[Result "1-0"]
[ECO "D02"]
[WhiteElo "2436"]
[BlackElo "1956"]
[Annotator "RC"]
[PlyCount "76"]
[EventDate "2023.12.30"]
[EventType "swiss"]
[EventCountry "BAN"]
[SourceTitle "playchess.com"]
[Source "ChessBase"]
[SourceQuality "1"]
[TimeControl "5400+30"]

1. d4 {[%emt 0:01:24]} d5 {[%emt 0:00:26]} 2. Bf4 {[%emt 0:00:06]} Nf6 {[%emt 0:02:14]} 3. e3 {[%emt 0:00:07]} e6 {[%emt 0:00:16]} 4. Nf3 {[%emt 0:00:06]} c5 {[%emt 0:00:32]} 5. c3 {[%emt 0:00:06]} Bd6 {[%emt 0:01:59]} 6. Ne5 {[%emt 0:01:27]} O-O {[%emt 0:05:19]} 7. Nd2 {[%emt 0:01:08]} Nc6 {[%emt 0:00:13]} 8. Bd3 {[%emt 0:04:56]} Qc7 {[%emt 0:01:49]} 9. Ndf3 {[%emt 0:01:06]} b6 {[%emt 0:02:59]} 10. h4 {[%emt 0:06:10]} Bb7 {[%emt 0:03:01]} 11. h5 {[%emt 0:02:25]} Ne7 {[%emt 0:05:22]} 12. g4 {[%emt 0:08:31]} Ne4 {[%emt 0:04:04]} 13. g5 {[%emt 0:03:08]} Nf5 {[%emt 0:11:26]} 14. g6 {[%emt 0:09:18]} f6 {[%emt 0:02:08]} 15. gxh7+ {[%emt 0:00:19]} Kxh7 {[%emt 0:00:05]} 16. Ng6 {[%emt 0:00:33]} Rfe8 {[%emt 0:04:11]} 17. Bxd6 {[%emt 0:01:22]} Qxd6 {[%emt 0:00:49]} 18. Qe2 {[%emt 0:00:59]} cxd4 {[%emt 0:03:04]} 19. Nxd4 {[%emt 0:01:24]} Nh6 {[%emt 0:06:41]} 20. O-O-O {[%emt 0:01:48]} f5 {[%emt 0:00:21]} 21. f3 {[%emt 0:54:37]} Nc5 {[%emt 0:04:44]} 22. Bc2 {[%emt 0:00:00]} Rac8 {[%emt 0:02:41]} 23. Rhg1 {[%emt 0:00:00]} b5 {[%emt 0:08:12]} 24. Kb1 {[%emt 0:00:00]} a6 {[%emt 0:01:33]} 25. f4 {[%emt 0:00:00]} Rc7 {[%emt 0:03:51]} 26. Ne5 {[%emt 0:00:00]} Qf8 {[%emt 0:05:10]} 27. Rg6 {[%emt 0:00:00]} Rce7 {[%emt 0:04:20]} 28. Rdg1 {[%emt 0:00:00]} Ne4 {[%emt 0:03:06]} 29. Ka1 {[%emt 0:00:00]} Nd6 {[%emt 0:03:40]} 30. Ndf3 {[%emt 0:00:00]} Ndf7 {[%emt 0:09:26]} 31. Rxg7+ {[%emt 0:00:00]} Qxg7 {[%emt 0:00:02]} 32. Rxg7+ {[%emt 0:00:00]} Kxg7 {[%emt 0:00:02]} 33. Qg2+ {[%emt 0:00:00]} Ng4 {[%emt 0:01:34]} 34. Nxg4 {[%emt 0:00:00]} fxg4 {[%emt 0:00:09]} 35. Qxg4+ {[%emt 0:00:00]} Kf8 {[%emt 0:00:45]} 36. Qg6 {[%emt 0:00:00]} e5 {[%emt 0:00:17]} 37. f5 {[%emt 0:00:00]} d4 {[%emt 0:00:44]} 38. f6 {[%emt 0:00:00]} Bxf3 {[%emt 0:00:14]} 1-0